Cogmind - Beta 9.4 @@@ ROGUE MODE // 2020.01.21 @ 04:38:48 // AFD2019/Pay2Buy Player: Cookie Result: Self-destructed Performance ------------- Evolutions (4) 2000 Regions Visited (14) 2800 Robots Destroyed (129) 645 Value Destroyed (3783) 3783 Prototype IDs (11) 220 Alien Tech Used (0) 0 Bonus (499) 499 TOTAL SCORE: 9947 Bonus ------- High Alert Combat Kills 128 Follower Combat Kills 246 Met Data Miner 300 Friendly Fire -175 Cogmind --------- Core Integrity 553/850 Matter 251/300 Energy 91/100 System Corruption 1% Temperature Cool (9) Movement Flying (40) Location -6/Lower Caves Parts ------- > --- POWER (2) -------- (None) > --- PROPULSION (4) --- Makeshift Flight Unit > --- UTILITY (7) ------ Launcher Guidance Computer > --- WEAPON (2) ------- (None) > --- INVENTORY (10) --- (None) Peak State ------------ > --- POWER ------------ Light Deuterium Engine Makeshift Power Source > --- PROPULSION ------- Makeshift Flight Unit Makeshift Flight Unit Makeshift Flight Unit > --- UTILITY ---------- Long-range Sensor Array Improved Signal Interpreter Launcher Guidance Computer Improved Propulsion Shielding Improved Utility Shielding Hacking Suite > --- WEAPON ----------- Mini Grenade Launcher Heavy Missile Launcher > --- INVENTORY -------- Armored Wheel Armored Wheel Improved Hover Unit Improved Airjet Weight Redist. System Bore Cannon Plasma Cutter [Rating: 46] Favorites ----------- Power Light Deuterium Engine Engine Light Deuterium Engine Power Core Light Nuclear Core Propulsion Improved Hover Unit Wheel Armored Wheel Hover Unit Improved Hover Unit Flight Unit Makeshift Flight Unit Utility Improved Signal Interpreter Device Improved Sensor Array Processor Improved Signal Interpreter Hackware Hacking Suite Protection Improved Utility Shielding Weapon Mini Grenade Launcher Ballistic Cannon Bore Cannon Launcher Mini Grenade Launcher Special Weapon Plasma Cutter Piercing Weapon Makeshift Spear Build | -11 -10 -10 -9 -9 -9 -8 -8 -7 -7 -7 -7 -6 -6 -6 ------- Run | Scr Mat Min Mat Min Exi Min Mat Fac Low Low Dat Pro Fac Low Slots Evolved 8 | . . . 2 . . . 2 2 . . . . 2 . Power 1 | . . . . . . . . 1 . . . . . . Propulsion 2 | . . . . . . . 1 . . . . . 1 . Utility 5 | . . . 2 . . . 1 1 . . . . 1 . Weapon . | . . . . . . . . . . . . . . . Parts Attached 35 | . . 2 3 . . 5 6 8 2 1 . 4 4 . Power . | . . . . . . . . . . . . . . . Engine . | . . . . . . . . . . . . . . . Core . | . . . . . . . . . . . . . . . Reactor . | . . . . . . . . . . . . . . . Propulsion 7 | . . . 2 . . . . . . . . 2 3 . Treads . | . . . . . . . . . . . . . . . Leg . | . . . . . . . . . . . . . . . Wheel 2 | . . . . . . . . . . . . 2 . . Hover 4 | . . . 2 . . . . . . . . . 2 . Flight 1 | . . . . . . . . . . . . . 1 . Utility 3 | . . . . . . . 1 . . . . 1 1 . Device 3 | . . . . . . . 1 . . . . 1 1 . Storage . | . . . . . . . . . . . . . . . Processor . | . . . . . . . . . . . . . . . Hackware . | . . . . . . . . . . . . . . . Protection . | . . . . . . . . . . . . . . . Artifact . | . . . . . . . . . . . . . . . Weapon 25 | . . 2 1 . . 5 5 8 2 1 . 1 . . Energy Gun . | . . . . . . . . . . . . . . . Energy Cannon . | . . . . . . . . . . . . . . . Ballistic Gun . | . . . . . . . . . . . . . . . Ballistic Cannon 1 | . . . . . . . . . . . . 1 . . Launcher 11 | . . . 1 . . 2 3 4 1 . . . . . Special Weapon 13 | . . 2 . . . 3 2 4 1 1 . . . . Impact Weapon . | . . . . . . . . . . . . . . . Slashing Weapon . | . . . . . . . . . . . . . . . Piercing Weapon . | . . . . . . . . . . . . . . . Special Melee Weapon . | . . . . . . . . . . . . . . . Unidentified Prototypes . | . . . . . . . . . . . . . . . Parts Lost 38 | . . . 5 . . 1 2 5 1 1 . 11 9 3 Power 6 | . . . 1 . . . . 1 1 . . 1 2 . Propulsion 10 | . . . 2 . . 1 . 1 . . . 2 4 . Utility 10 | . . . . . . . 2 1 . . . 4 1 2 Weapon 12 | . . . 2 . . . . 2 . 1 . 4 2 1 Highest Loss Streak 7 | . . . 3 . . 1 2 2 1 1 . 5 7 3 Average Slot Usage (%) 86 | . 85 99 70 100 100 99 99 94 86 96 100 69 60 28 Engine 8 | . 14 14 4 . . . . 10 13 15 15 8 4 . Core 3 | . . . 6 11 11 11 9 4 . . . . . . Wheel 5 | . . . . . . . . 8 15 . . 10 11 . Hover 11 | . 14 27 20 22 22 21 27 8 . . . . . . Flight 1 | . . . . . . . . . . 23 23 5 . 6 Device 12 | . 14 14 11 11 11 11 17 7 7 7 7 15 18 10 Processor 12 | . 14 14 11 11 11 11 9 15 15 15 15 8 6 6 Hackware 5 | . . . . 11 11 11 9 7 7 7 7 7 5 . Protection 7 | . . . . 11 11 11 9 15 15 15 15 3 . . Launcher 11 | . 14 14 11 22 22 18 16 13 10 8 7 1 . . Special Weapon 4 | . 14 14 6 . . 3 1 1 . 2 7 1 . 4 Naked Turns . | . . . . . . . . . . . . . . . Heaviest Build 24 | 6 6 6 8 14 14 14 17 24 24 23 23 23 19 3 Greatest Support 30 | 8 8 16 16 16 16 16 29 29 24 24 24 30 30 8 Greatest Overweight (x) 1 | . . . . . . 1 . 1 . . . . 1 . Average Overweight (x) . | . . . . . . . . . . . . . . . Largest Inventory Capacity 10 | 10 10 10 10 10 10 10 10 10 10 10 10 10 10 10 Average Capacity 10 | 10 10 10 10 10 10 10 10 10 10 10 10 10 10 10 Most Carried 7 | . 3 7 7 5 5 5 4 6 6 7 6 6 3 . Average Carried 4 | . 1 6 5 5 5 5 4 4 5 6 6 4 2 . Final Capacity 10 | 10 10 10 10 10 10 10 10 10 10 10 10 10 10 10 Final Carried 7 | . 3 7 4 5 5 5 4 5 5 6 6 3 . . Class Distribution -------------------- 95% | Mutant 4% | Derelict-Mutant Dominant Class ---------------- Mutant | -10/Materials Mutant | -10/Mines Mutant | -9/Materials Mutant | -9/Mines Mutant | -9/Exiles Mutant | -8/Mines Mutant | -8/Materials Mutant | -7/Factory Mutant | -7/Lower Caves Derelict-Mutant | -7/Lower Caves Derelict-Mutant | -7/Data Miner Mutant | -6/Proximity Caves Mutant | -6/Factory Mutant | -6/Lower Caves Resources | -11 -10 -10 -9 -9 -9 -8 -8 -7 -7 -7 -7 -6 -6 -6 ----------- Run | Scr Mat Min Mat Min Exi Min Mat Fac Low Low Dat Pro Fac Low Matter Collected 2100 | 55 120 184 177 60 . 172 375 285 214 62 . 334 62 . Remotely . | . . . . . . . . . . . . . . . Salvage Created 2849 | 55 187 208 215 143 . 244 613 481 198 113 . 330 62 . Parts . | . . . . . . . . . . . . . . . Haulers Intercepted 2 | . 1 . . . . . 1 . . . . . . . Recyclers Shooed . | . . . . . . . . . . . . . . . Parts Field Recycled . | . . . . . . . . . . . . . . . Retrieved Matter . | . . . . . . . . . . . . . . . Parts Self-Destructed . | . . . . . . . . . . . . . . . Prevented . | . . . . . . . . . . . . . . . Kills | -11 -10 -10 -9 -9 -9 -8 -8 -7 -7 -7 -7 -6 -6 -6 ------- Run | Scr Mat Min Mat Min Exi Min Mat Fac Low Low Dat Pro Fac Low Combat Hostiles Destroyed 79 | . 7 6 9 7 . 4 17 9 3 4 . 11 2 . Cannons 5 | . . . . . . . . . . . . 3 2 . AOE 74 | . 7 6 9 7 . 4 17 9 3 4 . 8 . . Classes Destroyed 14 | 2 6 . 1 2 . 1 1 1 . . . . . . Worker 14 | . 1 2 2 . . 1 4 4 . . . . . . Builder 14 | . 4 2 1 . . . 3 4 . . . . . . Tunneler 6 | 1 1 1 . . . 3 . . . . . . . . Hauler 2 | . 1 . . . . . 1 . . . . . . . Recycler 5 | 1 . . . . . . 1 3 . . . . . . Operator 3 | . . . . . . . 2 1 . . . . . . Watcher 6 | . 2 . . . . . 2 2 . . . . . . Swarmer 21 | . 3 6 4 . . . . 4 . . . 4 . . Grunt 45 | . 4 . 3 5 . 3 17 2 3 4 . 3 1 . Brawler 1 | . . . . 1 . . . . . . . . . . Duelist 4 | . . . . 1 . . . . . . . 3 . . Sentry 5 | . . . 2 . . . . 2 . . . 1 . . Hunter 1 | . . . . . . 1 . . . . . . . . Programmer 2 | . . . . . . . . 1 . . . . 1 . Best Kill Streak 12 | 2 7 4 4 5 . 4 12 5 3 4 . 7 1 . Combat Bots Only 7 | . 4 3 4 5 . 3 6 3 3 4 . 7 1 . Max Kills in Single Turn 4 | 1 2 2 2 2 . 2 4 3 2 2 . 3 1 . Gunslinging . | . . . . . . . . . . . . . . . Exploded 3 | . 2 2 2 2 . 2 3 2 2 2 . 3 . . Melee . | . . . . . . . . . . . . . . . Uniques/NPCs Destroyed . | . . . . . . . . . . . . . . . Combat | -11 -10 -10 -9 -9 -9 -8 -8 -7 -7 -7 -7 -6 -6 -6 -------- Run | Scr Mat Min Mat Min Exi Min Mat Fac Low Low Dat Pro Fac Low Damage Taken 3282 | . 135 96 255 42 . 141 259 574 53 66 . 805 564 292 Core 784 | . 102 9 66 . . 12 33 123 . 18 . 124 90 207 Absorbed by Shields . | . . . . . . . . . . . . . . . Core Remaining (%) 78 | 100 . 55 . . . 80 94 . . . . 62 . . Volleys Fired 286 | 3 54 33 21 6 . 24 44 29 17 12 . 25 18 . Largest 2 | 1 1 1 1 2 . 2 2 2 1 2 . 1 1 . Hottest 139 | 100 100 100 30 63 . 63 63 139 39 69 . 57 57 . Shots Fired 316 | 3 54 33 21 12 . 29 52 38 17 14 . 25 18 . Gun . | . . . . . . . . . . . . . . . Cannon 26 | . . . . . . . . . . . . 8 18 . Launcher 138 | . 12 7 14 12 . 10 35 29 5 6 . 8 . . Special 152 | 3 42 26 7 . . 19 17 9 12 8 . 9 . . Kinetic 26 | . . . . . . . . . . . . 8 18 . Thermal 152 | 3 42 26 7 . . 19 17 9 12 8 . 9 . . Explosive 138 | . 12 7 14 12 . 10 35 29 5 6 . 8 . . Electromagnetic . | . . . . . . . . . . . . . . . Robot Hit Streak 8 | 2 2 7 2 4 . 4 3 7 8 5 . 8 2 . Robot Miss Streak 9 | 1 9 3 2 1 . 5 4 3 3 6 . 3 3 . Penetration Max . | . . . . . . . . . . . . . . . Secondary Targets . | . . . . . . . . . . . . . . . Shots Hit Robots 126 | 2 8 16 11 5 . 10 20 18 7 4 . 17 8 . Core Hits 248 | 2 23 12 21 13 . 19 53 39 11 7 . 44 4 . Critical Hits 15 | . . 1 1 . . 2 4 . 1 . . 3 3 . Critical Kills 5 | . . . . . . 1 . . 1 . . 2 1 . Critical Parts Destroyed 10 | . . 1 1 . . 1 4 . . . . 1 2 . Melee Attacks 4 | . . . . . . . . . . . . 4 . . Impact . | . . . . . . . . . . . . . . . Slashing . | . . . . . . . . . . . . . . . Piercing 4 | . . . . . . . . . . . . 4 . . Sneak Attacks . | . . . . . . . . . . . . . . . Combat Hostiles . | . . . . . . . . . . . . . . . Follow-up Attacks . | . . . . . . . . . . . . . . . Damage Inflicted 10789 | 72 1040 420 694 551 . 585 2722 1842 415 465 . 1720 263 . Guns . | . . . . . . . . . . . . . . . Cannons 308 | . . . . . . . . . . . . 45 263 . Explosions 9378 | . 802 268 640 551 . 452 2581 1764 359 420 . 1541 . . Melee 59 | . . . . . . . . . . . . 59 . . Ramming . | . . . . . . . . . . . . . . . Kinetic 308 | . . . . . . . . . . . . 45 263 . Thermal 1300 | 72 238 152 54 . . 133 397 78 56 45 . 75 . . Explosive 9033 | . 802 268 640 551 . 452 2325 1675 359 420 . 1541 . . Electromagnetic 89 | . . . . . . . . 89 . . . . . . Impact . | . . . . . . . . . . . . . . . Slashing . | . . . . . . . . . . . . . . . Piercing 59 | . . . . . . . . . . . . 59 . . Highest Corruption 19 | . . . . . . . . 1 1 1 1 19 1 1 Average Corruption 3 | . . . . . . . . 1 1 1 1 16 1 1 Corruption Purged . | . . . . . . . . . . . . . . . Effects 29 | . . . . . . . . . 6 2 . 19 2 . Message Errors 10 | . . . . . . . . . 4 1 . 5 . . Matter Fused 3 | . . . . . . . . . . . . 3 . . Energy Discharges 3 | . . . . . . . . . 1 . . 2 . . Data Loss (minor) 1 | . . . . . . . . . . . . 1 . . Alerts 1 | . . . . . . . . . . . . 1 . . Misdirections 3 | . . . . . . . . . . . . 3 . . Targeting Errors 8 | . . . . . . . . . 1 1 . 4 2 . Overload Shots . | . . . . . . . . . . . . . . . Overflow Damage 246 | . 8 . 21 5 . 22 47 66 . 1 . 48 28 . Projectiles 29 | . . . . . . . . . . 1 . . 28 . Explosions 217 | . 8 . 21 5 . 22 47 66 . . . 48 . . Melee . | . . . . . . . . . . . . . . . Knockbacks 1 | . . . . . . . . . . . . . 1 . Impact . | . . . . . . . . . . . . . . . Kinetic 1 | . . . . . . . . . . . . . 1 . Secondary . | . . . . . . . . . . . . . . . Self-Inflicted Damage 555 | . 71 62 16 . . 89 . 217 . . . 100 . . Shots 17 | . 1 2 1 . . 3 . 6 . . . 4 . . Rammed . | . . . . . . . . . . . . . . . Targets Rammed . | . . . . . . . . . . . . . . . Kicked . | . . . . . . . . . . . . . . . Crushed . | . . . . . . . . . . . . . . . Highest Temperature 126 | 48 126 42 5 48 . 18 57 33 6 71 . 84 30 . Average Temperature 27 | 22 38 24 3 19 . 8 25 13 4 28 . 26 16 . Received Heat Transfer 741 | . 30 . 84 24 . . 144 69 27 36 . 144 54 129 Siege Activations . | . . . . . . . . . . . . . . . Robots Corrupted . | . . . . . . . . . . . . . . . Combat Hostiles . | . . . . . . . . . . . . . . . Parts Fried . | . . . . . . . . . . . . . . . Impact Corruptions . | . . . . . . . . . . . . . . . Robots Melted . | . . . . . . . . . . . . . . . Combat Hostiles . | . . . . . . . . . . . . . . . Parts Melted . | . . . . . . . . . . . . . . . Heat Transferred 3377 | 150 548 518 185 . . 444 681 259 185 148 . 259 . . Parts Sabotaged . | . . . . . . . . . . . . . . . Parts Stolen . | . . . . . . . . . . . . . . . Parts Stripped . | . . . . . . . . . . . . . . . Power Chain Reactions . | . . . . . . . . . . . . . . . Missiles Intercepted . | . . . . . . . . . . . . . . . Alert | -11 -10 -10 -9 -9 -9 -8 -8 -7 -7 -7 -7 -6 -6 -6 ------- Run | Scr Mat Min Mat Min Exi Min Mat Fac Low Low Dat Pro Fac Low Peak Influence 751 | 10 265 210 298 330 . 193 532 751 . . . . 211 . Average Influence 194 | 5 77 45 156 272 . 96 279 495 . . . . 118 . Maximum Alert Level 3 | . 1 1 1 1 . . 2 3 . . . . 1 . Low Security (%) 57 | 100 85 97 55 34 . 100 27 8 . . . . 47 . Level 1 25 | . 14 2 44 66 . . 27 26 . . . . 52 . Level 2 13 | . . . . . . . 44 38 . . . . . . Level 3 4 | . . . . . . . . 26 . . . . . . Level 4 . | . . . . . . . . . . . . . . . Level 5 . | . . . . . . . . . . . . . . . High Security . | . . . . . . . . . . . . . . . Max Security . | . . . . . . . . . . . . . . . Squads Dispatched 14 | . 1 . 1 1 . . 4 2 . . . . 5 . Investigation 2 | . . . . 1 . . . . . . . . 1 . Extermination 3 | . . . . . . . . 1 . . . . 2 . Reinforcement 8 | . 1 . 1 . . . 4 . . . . . 2 . Assault 1 | . . . . . . . . 1 . . . . . . Garrison . | . . . . . . . . . . . . . . . Intercept . | . . . . . . . . . . . . . . . Construction Impeded 2 | . . . . . . . 2 . . . . . . . Haulers Reinforced 1 | . . . . . . . . . . . . . 1 . Stealth | -11 -10 -10 -9 -9 -9 -8 -8 -7 -7 -7 -7 -6 -6 -6 --------- Run | Scr Mat Min Mat Min Exi Min Mat Fac Low Low Dat Pro Fac Low Distress Signals 4 | . 1 . . . . . 3 . . . . . . . Communications Jammed . | . . . . . . . . . . . . . . . Distress Signals . | . . . . . . . . . . . . . . . Times Spotted 105 | . 10 6 11 6 . 3 18 11 6 3 . 19 5 7 Peak Tracking Total 7 | . 3 3 6 3 . 3 5 4 3 4 . 6 3 7 Tactical Retreats 9 | . . 1 1 . . . 1 . 1 . . 3 1 1 Traps | -11 -10 -10 -9 -9 -9 -8 -8 -7 -7 -7 -7 -6 -6 -6 ------- Run | Scr Mat Min Mat Min Exi Min Mat Fac Low Low Dat Pro Fac Low Traps Triggered 3 | . . . . . . . . 2 . . . . 1 . Indirectly . | . . . . . . . . . . . . . . . Trap Hack Attempts . | . . . . . . . . . . . . . . . Triggered . | . . . . . . . . . . . . . . . Disarmed . | . . . . . . . . . . . . . . . Reprogrammed . | . . . . . . . . . . . . . . . Reused . | . . . . . . . . . . . . . . . Traps Extracted . | . . . . . . . . . . . . . . . Installed . | . . . . . . . . . . . . . . . Triggered 3 | . . . . . . . . . 1 . . . . 2 Machines | -11 -10 -10 -9 -9 -9 -8 -8 -7 -7 -7 -7 -6 -6 -6 ---------- Run | Scr Mat Min Mat Min Exi Min Mat Fac Low Low Dat Pro Fac Low Machines Disabled 44 | . 4 3 4 3 . . 5 24 . 1 . . . . Max in Single Turn 6 | . 2 2 1 2 . . 3 6 . 1 . . . . Machines Sabotaged . | . . . . . . . . . . . . . . . Garrisons Compromised . | . . . . . . . . . . . . . . . Overloaded Fab Kills . | . . . . . . . . . . . . . . . Fab Network Shutdowns . | . . . . . . . . . . . . . . . Hacking | -11 -10 -10 -9 -9 -9 -8 -8 -7 -7 -7 -7 -6 -6 -6 --------- Run | Scr Mat Min Mat Min Exi Min Mat Fac Low Low Dat Pro Fac Low Machines Accessed 26 | . 4 1 1 1 . . 4 6 2 1 4 . 2 . Terminals 17 | . 4 1 1 1 . . 4 5 . . . . 1 . Fabricators . | . . . . . . . . . . . . . . . Repair Stations . | . . . . . . . . . . . . . . . Recycling Units . | . . . . . . . . . . . . . . . Scanalyzers . | . . . . . . . . . . . . . . . Garrison Access 2 | . . . . . . . . 1 . . . . 1 . Total Hacks 92 | . 12 1 3 2 . . 9 20 3 5 26 . 11 . Successful 61 | . 7 . 2 . . . 4 10 3 5 26 . 4 . Failed 31 | . 5 1 1 2 . . 5 10 . . . . 7 . Catastrophic 4 | . . 1 . 2 . . . 1 . . . . . . Database Lockouts . | . . . . . . . . . . . . . . . Manual 52 | . 14 1 3 . . . 7 15 . . . . 12 . Terminals 51 | . 12 1 3 2 . . 9 17 . . . . 7 . Fabricators . | . . . . . . . . . . . . . . . Repair Stations . | . . . . . . . . . . . . . . . Recycling Units . | . . . . . . . . . . . . . . . Scanalyzers . | . . . . . . . . . . . . . . . Garrison Access 7 | . . . . . . . . 3 . . . . 4 . Terminal Hacks 45 | . 3 . . . . . 1 5 3 5 26 . 2 . Record 18 | . . . . . . . . . 2 5 11 . . . Part Schematic 5 | . . . . . . . . . . . 5 . . . Robot Schematic 7 | . . . . . . . . . . . 7 . . . Robot Analysis 2 | . 1 . . . . . . 1 . . . . . . Prototype ID Bank 3 | . . . . . . . . . . . 3 . . . Open Door 1 | . . . . . . . . . 1 . . . . . Branch Access Points 5 | . 1 . . . . . 1 2 . . . . 1 . Terminal Index 3 | . 1 . . . . . . 1 . . . . 1 . Locate Traps 1 | . . . . . . . . 1 . . . . . . Fabricator Hacks . | . . . . . . . . . . . . . . . Repair Station Hacks . | . . . . . . . . . . . . . . . Recycling Unit Hacks . | . . . . . . . . . . . . . . . Scanalyzer . | . . . . . . . . . . . . . . . Garrison Access Hacks . | . . . . . . . . . . . . . . . Unauthorized Hacks 39 | . 8 . 4 . . . 8 11 . . . . 8 . Terminals 16 | . 4 . 2 . . . 3 5 . . . . 2 . Botnet 11 | . 3 . 1 . . . 2 4 . . . . 1 . Operators 5 | . 1 . 1 . . . 1 1 . . . . 1 . Fabricators . | . . . . . . . . . . . . . . . Repair Stations . | . . . . . . . . . . . . . . . Recycling Units . | . . . . . . . . . . . . . . . Scanalyzers . | . . . . . . . . . . . . . . . Garrison Access . | . . . . . . . . . . . . . . . Data Cores Recovered 1 | . . . . . . . . 1 . . . . . . Used 1 | . . . . . . . . 1 . . . . . . Hacking Detections 19 | . 4 1 1 1 . . 4 6 . . . . 2 . Full Trace Events 2 | . . . . 1 . . . . . . . . 1 . Feedback Events . | . . . . . . . . . . . . . . . Feedback Blocked . | . . . . . . . . . . . . . . . Robot Schematics Acquired 7 | . . . . . . . . . . . 7 . . . Robots Built . | . . . . . . . . . . . . . . . Matter . | . . . . . . . . . . . . . . . Time . | . . . . . . . . . . . . . . . Total Robot Build Rating . | . . . . . . . . . . . . . . . Part Schematics Acquired 5 | . . . . . . . . . . . 5 . . . Parts Built . | . . . . . . . . . . . . . . . Matter . | . . . . . . . . . . . . . . . Time . | . . . . . . . . . . . . . . . Total Part Build Rating . | . . . . . . . . . . . . . . . Parts Repaired . | . . . . . . . . . . . . . . . Time . | . . . . . . . . . . . . . . . Parts Recycled . | . . . . . . . . . . . . . . . Recycled Matter . | . . . . . . . . . . . . . . . Retrieved Matter . | . . . . . . . . . . . . . . . Retrieved Components . | . . . . . . . . . . . . . . . Parts Scanalyzed . | . . . . . . . . . . . . . . . Part Schematics Acquired . | . . . . . . . . . . . . . . . Parts Damaged . | . . . . . . . . . . . . . . . Bothacking | -11 -10 -10 -9 -9 -9 -8 -8 -7 -7 -7 -7 -6 -6 -6 ------------ Run | Scr Mat Min Mat Min Exi Min Mat Fac Low Low Dat Pro Fac Low Used RIF Installer . | . . . . . . . . . . . . . . . Robots Hacked . | . . . . . . . . . . . . . . . Non-combat . | . . . . . . . . . . . . . . . Combat . | . . . . . . . . . . . . . . . Robot Hacks Applied . | . . . . . . . . . . . . . . . Relay Couplers Released . | . . . . . . . . . . . . . . . Robots Rewired . | . . . . . . . . . . . . . . . Allies Hacked . | . . . . . . . . . . . . . . . Hacks Repelled . | . . . . . . . . . . . . . . . Allies | -11 -10 -10 -9 -9 -9 -8 -8 -7 -7 -7 -7 -6 -6 -6 -------- Run | Scr Mat Min Mat Min Exi Min Mat Fac Low Low Dat Pro Fac Low Total Allies 1 | . . . . . . . . . . . . 1 . . Largest Group 1 | . . . . . . . . . . . . 1 . . Highest-Rated Group 94 | . . . . . . . . . . . . 94 . . Highest-Rated Ally 94 | . . . . . . . . . . . . 94 . . Total Orders . | . . . . . . . . . . . . . . . Ally Attacks 23 | . . . . . . . . . . . . 23 . . Total Damage 635 | . . . . . . . . . . . . 635 . . Kills 6 | . . . . . . . . . . . . 6 . . Allies Corrupted . | . . . . . . . . . . . . . . . Allies Melted . | . . . . . . . . . . . . . . . Intel | -11 -10 -10 -9 -9 -9 -8 -8 -7 -7 -7 -7 -6 -6 -6 ------- Run | Scr Mat Min Mat Min Exi Min Mat Fac Low Low Dat Pro Fac Low Robot Analysis Total 2 | . 1 . . . . . . 1 . . . . . . Derelict Logs Recovered . | . . . . . . . . . . . . . . . Drone Launches . | . . . . . . . . . . . . . . . Drone Recoveries . | . . . . . . . . . . . . . . . Exploration | -11 -10 -10 -9 -9 -9 -8 -8 -7 -7 -7 -7 -6 -6 -6 ------------- Run | Scr Mat Min Mat Min Exi Min Mat Fac Low Low Dat Pro Fac Low Turns Passed 7535 | 32 1224 580 266 250 158 494 801 883 1365 237 30 383 757 75 Spaces Moved 7440 | 33 669 785 302 306 282 609 525 1074 1384 539 88 397 275 172 Core 51 | . . . . . . . . . . . . . 51 . Treads . | . . . . . . . . . . . . . . . Legs . | . . . . . . . . . . . . . . . Wheels 2256 | . . . . . . . . 548 1384 . . 224 100 . Hover 4062 | 33 669 785 302 306 282 609 525 526 . . . . 25 . Flight 1071 | . . . . . . . . . . 539 88 173 99 172 Fastest Speed 34 | 60 60 56 56 56 56 56 48 48 90 34 34 34 40 40 Average Speed 63 | 60 60 56 56 56 56 57 48 71 90 34 34 66 61 40 Slowest Speed 120 | 60 60 60 60 56 56 120 48 111 90 34 34 90 100 40 Overloaded Moves . | . . . . . . . . . . . . . . . Propulsion Burnouts . | . . . . . . . . . . . . . . . Robots Hopped 2 | . . . . . . . . . . 1 . . . 1 Cave-ins Triggered 1 | . . . . . . . . . . . . 1 . . Exploration Rate (%) 52 | 3 53 99 16 54 71 93 41 28 90 62 71 58 10 31 Regions Visited 14 Branch Regions 9 Pre-discovered Areas 1 | . . . . . . . . . . . 1 . . . Known Exits Taken 13 | 1 1 1 1 1 1 1 1 1 1 1 1 . 1 . Unknown Exits Taken 1 | . . . . . . . . . . . . 1 . . Scrap Searched . | . . . . . . . . . . . . . . . Spaces Dug 145 | . 38 . . . . 27 10 6 . 33 . 31 . . Terrain Destroyed 1231 | . 96 63 64 84 . 104 233 273 64 76 . 164 10 . Melee . | . . . . . . . . . . . . . . . Projectile 23 | . 9 . . . . . . . . . . 4 10 . AOE 1208 | . 87 63 64 84 . 104 233 273 64 76 . 160 . . Actions | -11 -10 -10 -9 -9 -9 -8 -8 -7 -7 -7 -7 -6 -6 -6 --------- Run | Scr Mat Min Mat Min Exi Min Mat Fac Low Low Dat Pro Fac Low Total 9741 | 35 1369 859 370 372 281 699 1001 1133 1473 569 87 472 844 177 Wait 1982 | . 646 39 45 60 . 62 427 21 70 17 . 42 547 6 Move 7422 | 32 668 784 301 305 281 608 524 1073 1383 536 87 396 274 170 Hop 2 | . . . . . . . . . . 1 . . . 1 Pick Up 2 | . . 1 . . . . . . . . . . 1 . Fast Attach . | . . . . . . . . . . . . . . . Attach 15 | . . . 3 . . . 1 1 1 1 . 4 4 . Detach 8 | . 1 . . 1 . . . 2 1 2 . 1 . . Swap 20 | . . 2 . . . 5 5 7 1 . . . . . Drop . | . . . . . . . . . . . . . . . Fire 286 | 3 54 33 21 6 . 24 44 29 17 12 . 25 18 . Melee 4 | . . . . . . . . . . . . 4 . . Ram . | . . . . . . . . . . . . . . . Kick . | . . . . . . . . . . . . . . . Crush . | . . . . . . . . . . . . . . . Escape Stasis . | . . . . . . . . . . . . . . . Rewire . | . . . . . . . . . . . . . . . Trap . | . . . . . . . . . . . . . . . Miscellaneous . | . . . . . . . . . . . . . . . Route ------- -11/Scrapyard -10/Materials (discovered 2 exits: *Mat / *Min) -10/Mines (discovered 2 exits: *Mat x2) -9/Materials -9/Mines (discovered 2 exits: *Mat / *Exi) -9/Exiles (discovered 2 exits: *Min x2) -8/Mines (discovered 2 exits: *Mat x2) -8/Materials -7/Factory (discovered 2 exits: *Low x2) -7/Lower Caves -7/Lower Caves -7/Data Miner -6/Proximity Caves -6/Factory (discovered 2 exits: *Low x2) -6/Lower Caves History --------- Turn | Location | Event 4 | -11/Scrapyard | Discovered new exit (range 14) 32 | -11/Scrapyard | Identified exit to Materials 33 | -11/Scrapyard | Entered Materials 300 | -10/Materials | Build established: Mutant 762 | -10/Materials | Identified exit to Mines 1072 | -10/Materials | Discovered new exit (range 16) 1083 | -10/Materials | Identified exit to Materials 1257 | -10/Materials | Entered Mines 1294 | -10/Mines | Discovered exit to Materials (range 14) 1371 | -10/Mines | A weapon hastily lodged in a ceiling crevice suddenly fell to the ground 1656 | -10/Mines | Discovered exit to Materials (range 5) 1837 | -10/Mines | Entered Materials 1837 | -9/Materials | Evolved 2 slots: Utility x2 1885 | -9/Materials | Discovered new exit (range 16) 1892 | -9/Materials | Identified exit to Mines 1970 | -9/Materials | Lost 3 parts (1p2w) 2103 | -9/Materials | Entered Mines 2157 | -9/Mines | Discovered new exit (range 11) 2206 | -9/Mines | Identified exit to Materials 2305 | -9/Mines | Deemed a non-threat by the Exiles lab entrance 2305 | -9/Mines | Discovered new exit (range 5) 2352 | -9/Mines | Identified exit to Exiles 2353 | -9/Mines | Entered Exiles 2364 | -9/Exiles | Discovered new exit (range 15) 2370 | -9/Exiles | Identified exit to Mines 2382 | -9/Exiles | Met 8R-AWN 2391 | -9/Exiles | Met EX-HEX 2410 | -9/Exiles | Met EX-BIN 2429 | -9/Exiles | Met EX-DEC 2446 | -9/Exiles | Visited The Gauntlet 2503 | -9/Exiles | Discovered exit to Mines (range 14) 2511 | -9/Exiles | Entered Mines 2715 | -8/Mines | Discovered exit to Materials (range 9) 2870 | -8/Mines | Discovered exit to Materials (range 4) 3005 | -8/Mines | Entered Materials 3005 | -8/Materials | Evolved 2 slots: Propulsion x1, Utility x1 3794 | -8/Materials | Discovered new exit (range 14) 3805 | -8/Materials | Identified exit to Factory 3806 | -8/Materials | Entered Factory 3806 | -7/Factory | Evolved 2 slots: Power x1, Utility x1 4049 | -7/Factory | Identified exit to Lower Caves 4606 | -7/Factory | First assault squad dispatched 4689 | -7/Factory | Entered Lower Caves 5888 | -7/Lower Caves | Discovered new exit (range 12) 5897 | -7/Lower Caves | Identified exit to Lower Caves 6054 | -7/Lower Caves | Entered another Lower Caves area 6087 | -7/Lower Caves | Learned Extension emergency access door positions 6087 | -7/Lower Caves | Learned Research stockpile data 6284 | -7/Lower Caves | Discovered new exit (range 9) 6291 | -7/Lower Caves | Identified exit to Data Miner 6291 | -7/Lower Caves | Entered Data Miner 6291 | -7/Data Miner | Discovered new exit (range 6) 6295 | -7/Data Miner | Identified exit to Proximity Caves 6299 | -7/Data Miner | Met Data Miner 6307 | -7/Data Miner | Learned location of Section 7 (-2) 6307 | -7/Data Miner | Acquired the access code to Warlord's prototype stash 6314 | -7/Data Miner | Received God Mode back door access code from Data Miner 6321 | -7/Data Miner | Entered Proximity Caves 6347 | -6/Proximity Caves | Escorted by Enhanced Grunt 6347 | -6/Proximity Caves | Attracted the attention of an 0b10 outpost 6360 | -6/Proximity Caves | Build established: Derelict-Mutant 6370 | -6/Proximity Caves | Destroyed 7 combat bots 6378 | -6/Proximity Caves | Crushed by falling debris 6378 | -6/Proximity Caves | System corruption reached 10% 6409 | -6/Proximity Caves | Lost 5 parts (1p1n3u) 6462 | -6/Proximity Caves | Lost 4 parts (1n1u2w) 6680 | -6/Proximity Caves | Build established: Mutant 6691 | -6/Proximity Caves | Discovered new exit (range 15) 6704 | -6/Proximity Caves | Entered Factory 6704 | -6/Factory | Evolved 2 slots: Propulsion x1, Utility x1 6729 | -6/Factory | Identified exit to Lower Caves 6777 | -6/Factory | Incoming investigation squad redirected 7402 | -6/Factory | Lost 7 parts (1p4n2w) 7461 | -6/Factory | Entered Lower Caves 7497 | -6/Lower Caves | Spotted B-75 Beast 7502 | -6/Lower Caves | Encountered a Warlord checkpoint 7529 | -6/Lower Caves | Attracted the attention of an 0b10 checkpoint 7536 | -6/Lower Caves | Self-destructed Last Messages --------------- 07392_ Hacking Suite severed. 07392_ System Guard severed. 07397_ Acquired System Guard. 07423_ Slug penetrates Wall. 07441_ O-16 Technician: "IFF HANDSHAKE FAILED. SECURING TERMINAL." 07442_ ALERT: Hostiles spotted, dispatching reinforcements to Terminal F003. 07454_ ALERT: Rogue bot located, Programmers report to Factory Zone 8T. LOCATION=LOWER CAVES GOAL=ESCAPE 07476_ 0X-45C(k) breaks down the debris. 07477_ UM-Q4W(k) breaks down the debris. 07477_ A4-Q0B(k) breaks down the debris. [Purchased: Plasma Cutter] 07502_ B2-OCD(M): "We're here to intercept Unaware patrols. Move along before you get yourself shot." 07513_ Weight Redist. System destroyed. 07529_ Y-54 Guardian: "INTERCEPTING UNREGISTERED DERELICT." 07529_ System Guard destroyed. 07532_ Plasma Cutter destroyed. Map ----- +----------------------------------------------------+ | ?????????????????????????????????????????????????? | | ?????????????????????????????????????????????????? | | ?????????????????????????????????????????????????? | | ?????????????????????????????????????????????????? | | ?????????????????????????????????????????????????? | | ?????????????????????????????????????????????????? | | ?????????????????????????????????????????????????? | | ????????????????????????????????????????????####?? | | ????????????????????????????????????????????# ?? | | ??????????????????????????????????? ???????? ?? | | ?????????????????????????????????? ??????? ?? | | ??????????????????????????????????? ??#???# ?? | | ??????????????????????????????????? ## ??# #?? | | ???????????????????????????????????? ?# #?? | | ?????????????????????????????????????? ## #?? | | ???????????????????????????????????????? # #?? | | ?????????????????????????????????????????# #?? | | ???????????????????????????##?????????????# #?? | | ??????????????????????????? #?????????????# ### | | ????????????????????####### #?????????????# | | ????????????????????# #?????????????# | | ????????????????????# ##????????????## ### | | ????????????????????# ##???????????####??# | | ????????????????????# Y g ##?????????? #???## | | ????????????????????# ##????????? #????# | | ????????????????????# g @ ##????????# #???## | | ????????????????????# ##???????# #??## | | ????????????????????###### #??????## ##?# | | ?????????????????????????## ### #?????## #?## | | ??????????????????????????# #??# #????## #???# | | ??????????????????????????# #??# #???## ##### | | ??????????????????????????# #### ##### | | ??????????????????????????# | | ??????????????????????????###### ##### | | ???????????????????????????????## "" ##???? | | ????????????????????????????????# """" ##????? | | ????????????????????????????????# """ #?????? | | ????????????????????????????????# " #????? | | ????????????????????????????????# " #???? | | ????????????????????????????????# """" ##???? | | ????????????????????????????????# " ####????? | | ????????????????????????????????# #???????? | | ????????????????????????????????##########???????? | | ?????????????????????????????????????????????????? | | ?????????????????????????????????????????????????? | | ?????????????????????????????????????????????????? | | ?????????????????????????????????????????????????? | | ?????????????????????????????????????????????????? | | ?????????????????????????????????????????????????? | | ?????????????????????????????????????????????????? | +----------------------------------------------------+ Best States ------------- Heat Dissipation 37 Energy Generation 24 Energy Capacity 210 Matter Stores 300 Matter Capacity 300 Sight Range 16 Robot Scan Range 20 Terrain Scan Density 10 ECM Strength 1 Additional Mass Support 6 Corruption Prevention 12 Armor Coverage 150 Propulsion Shielding 66 Utility Shielding 66 Evasion (%) 63 Launcher Accuracy 20 Offensive Hacking 10 Item Schematics ----------------- Combat Drone Bay | -7/Data Miner | Free Lgt. Regenerative Plating | -7/Data Miner | Free Cmb. Gravmag System | -7/Data Miner | Free Tactical Coordination Suite | -7/Data Miner | Free Exp. ECM Suite | -7/Data Miner | Free Robot Schematics ------------------ S-27 Virus | -7/Data Miner | Free G-50 Soldier | -7/Data Miner | Free G-67 Veteran | -7/Data Miner | Free L-41 Fighter | -7/Data Miner | Free X-72 Disruptor | -7/Data Miner | Free H-66 Slayer | -7/Data Miner | Free I-36 Angel | -7/Data Miner | Free Fabricated ------------ Nothing Alien Tech Used ----------------- None Achievements -------------- None Challenges ------------ None Cogshop Purchases (40) ------------------------ Imp. Hover Unit (874) Lgt. Ion Engine (599) Mni. Grenade Launcher (1049) Imp. Signal Interpreter (699) Imp. Sensor Array (699) Mining Laser (599) ECM Suite (287) Weight Redist. System (335) Plasma Cutter (671) Imp. Hover Unit (375) Imp. Hover Unit (375) Imp. Hover Unit (375) Mni. Grenade Launcher (1086) Lgt. Nuclear Core (648) Plasma Cutter (597) Rocket Launcher (1063) Imp. Light Armor Plating (611) Hacking Suite (1037) Imp. Hover Unit (1084) Imp. Airjet (1556) Lrn. Sensor Array (941) Imp. Utility Shielding (671) Lgt. Deuterium Engine (888) Launcher Guidance Computer (795) Imp. Propulsion Shielding (658) Hvy. Missile Launcher (1335) Arm. Wheel (802) Arm. Wheel (802) Lgt. Deuterium Engine (1083) Mak. Flight Unit (953) Mak. Flight Unit (953) Mak. Flight Unit (953) Mak. Power Source (846) Rocket Array (2293) Plasma Cutter (630) Lrn. Sensor Array (867) Mak. Spear (948) System Guard (1018) Mak. Power Source (845) Plasma Cutter (549) Game ------ Seed SystemCatalystGenerator Manual? 0 Play Time 01:44:18 Cumulative 48.0 hours Start 2020.01.21 @ 02:37:16 End 2020.01.21 @ 04:38:48 Sessions 1 Manual Loads 0 Difficulty Rogue Special Mode AFD2019/Pay2Buy Game No. 73 Rogue 73 Adventurer 0 Explorer 0 Win Type - Total 1 Types 1/0/0/0/0/0/0 Lore% 34 Gallery% 36 Achievement% 32 Wizard Run 0 Options --------- ASCII 0 Keyboard 0 Movement Mouse Keybinds 0 Fullscreen 1 Font 18/SmallcapsGlow Map View 76x50 Tactical HUD 1 Map Filters NONE Filters NONE Steam 1 RUN: bb299177-b432-4a77-8345-56a46830bfbe